fUSD/lending_fUSD_20251228
["ID","MTS","AMOUNT","RATE_DAILY","PERIOD"]
[399945559,1766919041069,-5354.9,0.00016438,2]
[399945560,1766919041078,-154.69967438,0.00016451,2]
[399945561,1766919041087,-205.97165468,0.00016485,2]
[399945562,1766919041096,-5102.30663022,0.00016498,2]
[399945563,1766919041105,-280.44326248,0.00016498,2]
[399945564,1766919041113,-3874.97124849,0.00016498,2]
[399945565,1766919041122,-2807.23671172,0.00016501,2]
[399945566,1766919041131,-2807.23671172,0.00016567,2]
[399945567,1766919041139,-200.0,0.00016583,2]
[399945568,1766919041148,-168.7186458,0.00016585,2]
[399945569,1766919041157,-161884.4741957,0.00016585,2]
[399945570,1766919041166,-141689.4389213,0.00016585,2]
[399945571,1766919041174,-919.3803936,0.00016585,2]
[399945572,1766919041184,-8496.7416244,0.00016585,2]
[399945573,1766919041192,-167.09929121,0.00016601,2]
[399945574,1766919041201,-154.69967438,0.00016601,2]
[399945575,1766919041210,-2807.23671172,0.00016634,2]
[399945576,1766919041219,-433.98777486,0.0001666,2]
[399945577,1766919041228,-545.2,0.0001667,2]
[399945578,1766919041238,-2807.23671172,0.000167,2]
[399945579,1766919041246,-154.69967438,0.0001675,2]
[399945580,1766919041257,-201.337,0.00016766,2]
[399945581,1766919041267,-1119.473,0.00016766,2]
[399945582,1766919041278,-2807.23671172,0.00016767,2]
[399945583,1766919041288,-2807.23671172,0.00016833,2]
[399945584,1766919041298,-300.0,0.00016841,2]
[399945585,1766919041307,-4298.0,0.0001685,2]
[399945586,1766919041316,-200.0,0.00016864,2]
[399945587,1766919041324,-768.81123861,0.000169,3]
[399945588,1766919041335,-10000.0,0.000169,2]
[399945589,1766919041344,-7099.17185316,0.000169,3]
[399945590,1766919041355,-167.09929121,0.000169,2]
[399945591,1766919041366,-2807.23671172,0.000169,2]
[399945592,1766919041375,-154.69967438,0.000169,2]
[399945593,1766919041386,-1403.51807199,0.000169,2]
[399945594,1766919041395,-66510.15607146,0.000169,2]
[399945595,1766919041404,-151.0,0.000169,2]
[399945596,1766919041413,-151.0,0.000169,2]
[399945597,1766919041424,-151.0,0.000169,2]
[399945598,1766919041435,-1200.0,0.00016926,2]
[399945599,1766919041445,-277.91152416,0.00016935,2]
[399945600,1766919041456,-545.2,0.00016944,2]
[399945601,1766919041466,-1525.63788744,0.00016956,2]
[399945602,1766919041475,-505.85873594,0.00016969,2]
[399945603,1766919041484,-151.87453226,0.00016969,2]
[399945604,1766919041493,-500.69794678,0.00016973,2]
[399945605,1766919041502,-578.09055034,0.00016973,2]
[399945606,1766919041511,-500.0,0.00016973,2]
[399945607,1766919041521,-500.0,0.00016973,2]
[399945608,1766919041533,-500.0,0.00016973,2]
[399945609,1766919041543,-500.0,0.00016973,2]
[399945610,1766919041555,-340.61062855,0.00016973,2]
[399945611,1766919041563,-203.15298137,0.00016973,2]
[399945612,1766919041576,-516.27997317,0.00016973,2]
[399945613,1766919041585,-500.0,0.00016973,2]
[399945614,1766919041594,-500.85707724,0.00016973,2]
[399945615,1766919041603,-500.0,0.00016973,2]
[399945616,1766919041612,-500.0,0.00016973,2]
[399945617,1766919041621,-500.0,0.00016973,2]
[399945618,1766919041630,-500.0,0.00016973,2]
[399945619,1766919041639,-500.0,0.00016973,2]
[399945620,1766919041648,-500.0,0.00016973,2]
[399945621,1766919041657,-500.0,0.00016973,2]
[399945622,1766919041668,-150.0,0.00016973,2]
[399945623,1766919041677,-12493.31275657,0.00016986,2]
[399945624,1766919041686,-221.52529679,0.00016999,5]
[399945625,1766919041696,-1117.45821686,0.00016999,5]
[399945626,1766919041706,-2752364.77378942,0.00017,2]
[399945627,1766919041722,-18807.71340157,0.00017,2]
[399945628,1766919041734,-569.6856458,0.00017,2]
[399945629,1766919041746,-3800.79606342,0.00017,2]
[399945634,1766919043492,-151.0,0.00016203,2]
[399945635,1766919043503,-118574.45614013,0.00017,2]
[399945636,1766919043547,-22251.86108931,0.00017,2]
[399945637,1766919043559,-1242.13822015,0.00017,2]
[399945638,1766919043571,-1496260.07407392,0.00017,2]
[399945639,1766919044274,-151.0,0.00016203,2]
[399945640,1766919044283,-217.14700699,0.00017,2]
[399945641,1766919044294,-2799.58221255,0.00017,2]
[399945642,1766919044306,-334.05535891,0.00017,2]
[399945643,1766919044317,-2448.77003185,0.00017,2]
[399945648,1766919045961,-713.74827339,0.00017,2]
[399945658,1766919505290,701.0,0.00030137,120]
[399945688,1766920238246,-1000.0,0.00015356,2]
[399945689,1766920238256,-720.35,0.00015356,2]
[399945690,1766920238352,-300.6,0.00015356,2]
[399945691,1766920238363,-79.05,0.00015356,2]
[399945692,1766920238372,-217.12,0.00015482,2]
[399945693,1766920238382,-168.0,0.0001557,2]
[399945694,1766920238391,-2287.03132915,0.00015606,2]
[399945721,1766920240241,-375.08339,0.00015606,2]
[399945744,1766920240451,-1549.02528085,0.00015606,2]
[399945746,1766920240462,-150.0,0.00015963,2]
[399945748,1766920240472,-200.0,0.00015963,2]
[399945750,1766920240481,-213.0,0.00015998,2]
[399945752,1766920240490,-150.0,0.00016013,2]
[399945754,1766920240500,-3511.72544111,0.00016038,2]
[399945756,1766920240510,-205.97165468,0.00016038,2]
[399945758,1766920240519,-213.0,0.00016042,2]
[399945760,1766920240529,-151.0,0.00016115,2]
[399945762,1766920240538,-151.0,0.00016115,2]
[399945764,1766920240547,-151.0,0.00016118,2]
[399945766,1766920240556,-151.0,0.00016118,2]
[399945769,1766920240566,-151.0,0.0001612,2]
[399945772,1766920240575,-151.0,0.0001612,2]
[399945775,1766920240584,-1200.0,0.00016126,2]
[399945778,1766920240594,-232.73709076,0.00016127,2]
[399945781,1766920240603,-287.1717072,0.00016127,2]
[399945784,1766920240611,-500.0,0.00016127,2]
[399945787,1766920240620,-500.0,0.00016127,2]
[399945790,1766920240629,-500.0,0.00016127,2]
[399945793,1766920240639,-500.0,0.00016127,2]
[399945796,1766920240648,-500.0,0.00016127,2]
[399945799,1766920240657,-500.0,0.00016127,2]
[399945802,1766920240666,-500.0,0.00016127,2]
[399945805,1766920240674,-500.0,0.00016127,2]
[399945808,1766920240685,-500.0,0.00016127,2]
[399945811,1766920240694,-500.0,0.00016127,2]
[399945814,1766920240702,-500.0,0.00016127,2]
[399945817,1766920240711,-500.0,0.00016127,2]
[399945820,1766920240720,-500.0,0.00016127,2]
[399945822,1766920240729,-637.58715247,0.00016127,2]
[399945825,1766920240738,-500.0,0.00016127,2]
[399945829,1766920240748,-500.0,0.00016127,2]
[399945832,1766920240757,-500.0,0.00016127,2]
[399945834,1766920240766,-500.0,0.00016127,2]
[399945837,1766920240775,-500.0,0.00016127,2]
[399945840,1766920240784,-500.0,0.00016127,2]
[399945842,1766920240796,-500.0,0.00016127,2]
[399945843,1766920240806,-500.0,0.00016127,2]
[399945846,1766920240816,-500.0,0.00016127,2]
[399945848,1766920240827,-500.0,0.00016127,2]
[399945850,1766920240838,-500.0,0.00016127,2]
[399945852,1766920240848,-500.0,0.00016127,2]
[399945854,1766920240858,-500.0,0.00016127,2]
[399945856,1766920240867,-500.0,0.00016127,2]
[399945858,1766920240875,-500.0,0.00016127,2]
[399945860,1766920240885,-500.0,0.00016127,2]
[399945862,1766920240894,-500.0,0.00016127,2]
[399945864,1766920240903,-500.0,0.00016127,2]
[399945866,1766920240912,-500.0,0.00016127,2]
[399945868,1766920240921,-500.0,0.00016127,2]
[399945870,1766920240930,-500.0,0.00016127,2]
[399945872,1766920240939,-500.0,0.00016127,2]
[399945873,1766920240950,-450.0,0.00016127,2]
[399945874,1766920240960,-300.0,0.00016127,2]
[399945875,1766920240970,-300.0,0.00016127,2]
[399945876,1766920240979,-1000000.0,0.00016128,2]
[399945877,1766920240988,-3511.72544106,0.00016134,2]
[399945878,1766920240997,-1000.0,0.00016138,2]
[399945879,1766920241006,-179.77050145,0.00016185,2]
[399945880,1766920241015,-168.0,0.00016188,2]
[399945881,1766920241024,-1221.21,0.000162,2]
[399945882,1766920241033,-465.28,0.000162,2]
[399945883,1766920241042,-300.0,0.000162,2]
[399945884,1766920241051,-1221.21,0.000162,2]
[399945885,1766920241060,-150.0,0.000162,2]
[399945886,1766920241069,-554.64,0.000162,2]
[399945887,1766920241078,-465.28,0.000162,2]
[399945888,1766920241087,-554.64,0.000162,2]
[399945889,1766920241096,-465.28,0.000162,2]
[399945890,1766920241104,-1221.21,0.000162,2]
[399945891,1766920241113,-554.64,0.000162,2]
[399945892,1766920241122,-1221.21,0.000162,2]
[399945893,1766920241131,-150.0,0.000162,2]
[399945894,1766920241140,-465.28,0.000162,2]
[399945895,1766920241149,-1218.46,0.000162,2]
[399945896,1766920241158,-554.64,0.000162,2]
[399945897,1766920241167,-465.28,0.000162,2]
[399945898,1766920241177,-554.64,0.000162,2]
[399945899,1766920241188,-150.0,0.000162,2]
[399945900,1766920241196,-465.28,0.000162,2]
[399945901,1766920241205,-554.64,0.000162,2]
[399945902,1766920241214,-465.28,0.000162,2]
[399945903,1766920241225,-554.64,0.000162,2]
[399945904,1766920241236,-465.28,0.000162,2]
[399945905,1766920241244,-213.0,0.00016205,2]
[399945906,1766920241257,-213.0,0.00016216,2]
[399945907,1766920241268,-1000.0,0.00016217,2]
[399945908,1766920241277,-59881.49823535,0.00016218,2]
[399945909,1766920241287,-201.337,0.00016227,2]
[399945910,1766920241298,-1119.473,0.00016227,2]
[399945911,1766920241308,-553.64373807,0.00016228,2]
[399945912,1766920241318,-208.86276468,0.00016228,2]
[399945913,1766920241327,-3511.72544106,0.0001623,2]
[399945914,1766920241336,-545.2,0.00016237,2]
[399945915,1766920241345,-3511.72544106,0.00016325,2]
[399945916,1766920241357,-179.77050143,0.00016364,2]
[399945917,1766920241366,-154.69967438,0.00016364,2]
[399945918,1766920241376,-5102.30663022,0.00016397,2]
[399945919,1766920241386,-3874.97124849,0.00016397,2]
[399945920,1766920241397,-280.44326248,0.00016397,2]
[399945921,1766920241406,-353.94301346,0.00016438,2]
[399945922,1766920241417,-545.2,0.00016511,2]
[399945923,1766920241427,-500.0,0.00016539,2]
[399945924,1766920241437,-179.77050143,0.00016543,2]
[399945925,1766920241446,-154.69967438,0.00016543,2]
[399945926,1766920241455,-504.0,0.00016548,2]
[399945927,1766920241465,-433.98777486,0.0001666,2]
[399945928,1766920241475,-179.77050143,0.00016721,2]
[399945929,1766920241484,-154.69967438,0.00016721,2]
[399945930,1766920241493,-1000.0,0.00016726,7]
[399945931,1766920241503,-1100.0,0.00016726,7]
[399945932,1766920241512,-277.91152416,0.00016776,2]
[399945933,1766920241522,-545.2,0.00016785,2]
[399945934,1766920241533,-4293.0,0.00016855,2]
[399945935,1766920241544,-200.0,0.00016864,2]
[399945936,1766920241554,-7867.98309177,0.000169,3]
[399945937,1766920241564,-10000.0,0.000169,2]
[399945938,1766920241575,-179.77050143,0.000169,2]
[399945939,1766920241584,-154.69967438,0.000169,2]
[399945940,1766920241594,-1403.51807199,0.000169,2]
[399945941,1766920241604,-3434.13748852,0.000169,2]
[399945942,1766920241615,-500.0,0.00016973,2]
[399945943,1766920241626,-500.0,0.00016973,2]
[399945944,1766920241636,-203.15298137,0.00016973,2]
[399945945,1766920241646,-500.85707724,0.00016973,2]
[399945946,1766920241655,-500.0,0.00016973,2]
[399945947,1766920241665,-516.27997317,0.00016973,2]
[399945948,1766920241674,-500.0,0.00016973,2]
[399945949,1766920241683,-500.0,0.00016973,2]
[399945950,1766920241694,-500.69794678,0.00016973,2]
[399945951,1766920241704,-578.09055034,0.00016973,2]
[399945952,1766920241715,-500.0,0.00016973,2]
[399945953,1766920241724,-500.0,0.00016973,2]
[399945954,1766920241734,-340.61062855,0.00016973,2]
[399945955,1766920241744,-500.0,0.00016973,2]
[399945956,1766920241754,-500.0,0.00016973,2]
[399945957,1766920241763,-500.0,0.00016973,2]
[399945958,1766920241773,-500.0,0.00016973,2]
[399945959,1766920241783,-500.0,0.00016973,2]
[399945960,1766920241793,-365.67138507,0.00016973,2]
[399945961,1766920241804,-388.44895572,0.00016973,2]
[399945962,1766920241815,-150.0,0.00016973,2]
[399945963,1766920241826,-309.66881756,0.00016983,2]
[399945964,1766920241837,-505.85873594,0.00016983,2]
[399945965,1766920241846,-151.87453226,0.00016983,2]
[399945966,1766920241855,-1534.75665237,0.00016986,2]
[399945967,1766920241865,-151771.06,0.00016986,2]
[399945968,1766920241875,-294204.8551966,0.00016998,2]
[399945969,1766920241885,-34708.5113215,0.00016998,2]
[399945970,1766920241896,-30378.6358721,0.00016998,2]
[399945971,1766920241907,-221.52529679,0.00016999,5]
[399945972,1766920241917,-1117.45821686,0.00016999,5]
[399945973,1766920241926,-2090195.99172182,0.00017,2]
[399945974,1766920242104,-567.79902099,0.00017,2]
[399945975,1766920242117,-6176.93849631,0.00017,2]
[399945978,1766920243745,-375.82408778,0.00016192,2]
[399945979,1766920243758,-178.81591222,0.00016192,2]
[399945980,1766920243768,-463.21,0.00016192,2]
[399945981,1766920243778,-1043.68408778,0.00016421,2]
[399946011,1766920246153,-1086.88479984,0.00016421,2]
[399946015,1766920247834,151.42,8.253e-05,2]
[399946016,1766920248011,151.42,8.769e-05,2]
[399946017,1766920248418,151.42,9.284e-05,2]
[399946018,1766920248622,151.42,9.8e-05,2]
[399946019,1766920248827,151.42,0.00010316,2]
[399946020,1766920249032,151.42,0.00010832,2]
[399946021,1766920249356,151.42,0.00011348,2]
[399946022,1766920249567,151.42,0.00011863,2]
[399946023,1766920249757,151.42,0.00012379,2]
[399946024,1766920249949,151.42,0.00012895,2]
[399946025,1766920250153,151.42,0.00013411,2]
[399946026,1766920418187,158.0,0.000202,30]
[399946027,1766920418273,155.0,0.000202,30]
[399946028,1766920418514,155.0,0.000202,30]
[399946029,1766920418745,155.0,0.000202,30]
[399946030,1766920419774,167.0,0.000202,30]
[399946031,1766920419987,163.0,0.000202,30]
[399946032,1766920420237,163.0,0.000202,30]
[399946033,1766920420472,163.0,0.000202,30]
[399946034,1766920420730,163.0,0.000202,30]
[399946071,1766921432210,-151.42,0.00013927,2]
[399946073,1766921432219,-151.42,0.00014443,2]
[399946075,1766921432229,-151.42,0.00014958,2]
[399946077,1766921432238,-855.42764366,0.00014962,2]
[399946078,1766921432250,-144.57235634,0.00014962,2]
[399946079,1766921432259,-465.30149586,0.00014973,2]
[399946080,1766921432268,-500.0,0.00015026,2]
[399946081,1766921432278,-999.0,0.00015121,3]
[399946082,1766921432288,-159.40048073,0.00015166,2]
[399946083,1766921432297,-200.0,0.00015266,2]
[399946084,1766921432306,-236.84,0.00015463,2]
[399946085,1766921432316,-151.42,0.00015474,2]
[399946086,1766921432326,-166.66,0.00015504,2]
[399946087,1766921432335,-544.85,0.00015578,2]
[399946088,1766921432345,-200.0,0.00015655,2]
[399946089,1766921432356,-254.234831,0.00015695,2]
[399946090,1766921432365,-212.0,0.00015833,2]
[399946091,1766921432374,-200.0,0.00015838,2]
[399946092,1766921432383,-212.0,0.00015866,2]
[399946093,1766921432392,-300.0,0.00015916,2]
[399946094,1766921432401,-7.51883607,0.00015916,2]
[399946095,1766921432412,-292.48116393,0.00015916,2]
[399946096,1766921432422,-189.64883607,0.00015916,2]
[399946097,1766921432433,-1010.35116393,0.00015916,2]
[399946098,1766921432442,-154.69967438,0.00015917,2]
[399946099,1766921432451,-205.97165468,0.00015917,2]
[399946100,1766921432460,-1668.6447623,0.00015917,2]
[399946101,1766921432471,-2178.95589453,0.00015917,2]
[399946102,1766921432483,-437.48415798,0.00015917,2]
[399946104,1766921432493,-212.0,0.00015967,2]
[399946106,1766921432502,-151.0,0.00015988,2]
[399946108,1766921432512,-151.0,0.00015988,2]
[399946109,1766921432522,-151.42,0.0001599,2]
[399946110,1766921432531,-151.0,0.00015993,2]
[399946111,1766921432539,-151.0,0.00015993,2]
[399946112,1766921432549,-151.0,0.00015993,2]
[399946113,1766921432557,-151.0,0.00015993,2]
[399946114,1766921432566,-450.0,0.00016014,2]
[399946116,1766921432576,-187.88767078,0.00016015,2]
[399946118,1766921432584,-45.15745646,0.00016015,2]
[399946119,1766921432595,-364.08298421,0.00016015,2]
[399946120,1766921432603,-176.45844357,0.00016015,2]
[399946121,1766921432615,-25.26172182,0.00016015,2]
[399946122,1766921432626,-585.74104471,0.00016015,2]
[399946123,1766921432635,-157.64100285,0.00016015,2]
[399946124,1766921432643,-18.63516984,0.00016015,2]
[399946125,1766921432655,-575.10278768,0.00016015,2]
[399946126,1766921432665,-52.35091525,0.00016015,2]
[399946127,1766921432676,-447.64908475,0.00016015,2]
[399946128,1766921432686,-500.0,0.00016015,2]
[399946129,1766921432695,-500.0,0.00016015,2]
[399946130,1766921432705,-500.0,0.00016015,2]
[399946131,1766921432715,-328.5132583,0.00016015,2]
[399946132,1766921432728,-500.0,0.00016015,2]
[399946133,1766921432739,-500.0,0.00016015,2]
[399946134,1766921432748,-500.0,0.00016015,2]
[399946135,1766921432757,-500.0,0.00016015,2]
[399946136,1766921432768,-500.0,0.00016015,2]
[399946137,1766921432778,-500.0,0.00016015,2]
[399946138,1766921432787,-500.0,0.00016015,2]
[399946139,1766921432795,-500.0,0.00016015,2]
[399946140,1766921432807,-500.0,0.00016015,2]
[399946141,1766921432815,-500.0,0.00016015,2]
[399946142,1766921432824,-500.0,0.00016015,2]
[399946143,1766921432833,-500.0,0.00016015,2]
[399946144,1766921432842,-500.0,0.00016015,2]
[399946145,1766921432851,-500.0,0.00016015,2]
[399946146,1766921432860,-500.0,0.00016015,2]
[399946147,1766921432869,-500.0,0.00016015,2]
[399946148,1766921432878,-500.0,0.00016015,2]
[399946149,1766921432888,-500.0,0.00016015,2]
[399946150,1766921432896,-500.0,0.00016015,2]
[399946151,1766921432906,-500.0,0.00016015,2]
[399946152,1766921432914,-500.0,0.00016015,2]
[399946153,1766921432923,-500.0,0.00016015,2]
[399946154,1766921432933,-500.0,0.00016015,2]
[399946155,1766921432943,-500.0,0.00016015,2]
[399946156,1766921432953,-500.0,0.00016015,2]
[399946157,1766921432962,-500.0,0.00016015,2]
[399946158,1766921432971,-500.0,0.00016015,2]
[399946159,1766921432980,-500.0,0.00016015,2]
[399946160,1766921432989,-500.0,0.00016015,2]
[399946161,1766921432998,-500.0,0.00016015,2]
[399946162,1766921433006,-500.0,0.00016015,2]
[399946163,1766921433015,-437.58715247,0.00016015,2]
[399946164,1766921433024,-500.0,0.00016015,2]
[399946165,1766921433033,-500.0,0.00016015,2]
[399946166,1766921433042,-500.0,0.00016015,2]
[399946167,1766921433051,-500.0,0.00016015,2]
[399946168,1766921433061,-500.0,0.00016015,2]
[399946169,1766921433071,-500.0,0.00016015,2]
[399946170,1766921433080,-500.0,0.00016015,2]
[399946171,1766921433088,-500.0,0.00016015,2]
[399946172,1766921433097,-500.0,0.00016015,2]
[399946173,1766921433107,-500.0,0.00016015,2]
[399946174,1766921433117,-500.0,0.00016015,2]
[399946175,1766921433126,-343.75871524,0.00016015,2]
[399946176,1766921433136,-500.0,0.00016015,2]
[399946177,1766921433146,-500.0,0.00016015,2]
[399946178,1766921433156,-500.0,0.00016015,2]
[399946179,1766921433168,-500.0,0.00016015,2]
[399946180,1766921433177,-166.66,0.00016015,2]
[399946181,1766921433187,-403718.38791282,0.00016016,2]
[399946182,1766921433318,-1605.81873753,0.00016016,2]
[399946183,1766921433329,-79091.82077702,0.00016016,2]
[399946184,1766921433340,-264769.53333406,0.00016016,2]
[399946185,1766921433351,-1254.41808677,0.00016016,2]
[399946186,1766921433362,-529.82070828,0.00016016,2]
[399946187,1766921433386,-827.08473548,0.00016016,2]
[399946188,1766921433397,-448.54201431,0.00016016,2]
[399946192,1766921438327,-443.26536606,0.00016016,2]
[399946193,1766921438339,-2178.00072333,0.00016016,2]
[399946194,1766921438380,-646.48999974,0.00016016,2]
[399946195,1766921438437,-6173.24549921,0.00016016,2]
[399946196,1766921438448,-26540.97871485,0.00016016,2]
[399946197,1766921438492,-1000.24659032,0.00016016,2]
[399946198,1766921438503,-392.59463394,0.00016016,2]
[399946225,1766921440405,-447.1571751,0.00016016,2]
[399946226,1766921440417,-375.32230847,0.00016016,2]
[399946227,1766921440428,-360.11324534,0.00016016,2]
[399946228,1766921440463,-303.94,0.00016016,2]
[399946229,1766921440569,-28162.46086734,0.00016016,2]
[399946230,1766921440582,-12971.61034677,0.00016016,2]
[399946231,1766921440595,-14363.08807329,0.00016016,2]
[399946232,1766921440609,-2334.80356846,0.00016016,2]
[399946233,1766921440620,-3816.26585088,0.00016016,2]
[399946234,1766921440630,-3030.275,0.00016016,2]
[399946235,1766921440641,-144214.71573063,0.00016016,2]
[399946236,1766921440650,-159.40048073,0.00016017,2]
[399946237,1766921440659,-208.86276468,0.00016024,2]
[399946238,1766921440668,-4285.08481481,0.00016026,2]
[399946239,1766921440676,-151.12490871,0.00016034,2]
[399946240,1766921440686,-3335.50111896,0.00016038,2]
[399946241,1766921440697,-212.0,0.00016043,2]
[399946242,1766921440706,-151.0,0.00016092,2]
[399946243,1766921440715,-1200.0,0.000161,2]
[399946244,1766921440728,-1559.17959387,0.00016111,2]
[399946245,1766921440737,-9999.99,0.00016116,2]
[399946246,1766921440746,-59881.49823535,0.00016117,2]
[399946247,1766921440755,-545.2,0.00016127,2]
[399946248,1766921440765,-3335.50111894,0.00016134,2]
[399946249,1766921440774,-4285.08481481,0.00016135,2]
[399946250,1766921440783,-1000.0,0.00016138,2]
[399946251,1766921440793,-553.64373807,0.00016145,2]
[399946252,1766921440803,-154.69967438,0.00016163,2]
[399946253,1766921440812,-150.0,0.00016164,2]
[399946254,1766921440822,-200.0,0.00016164,2]
[399946255,1766921440831,-212.0,0.00016175,2]
[399946256,1766921440840,-151.12490865,0.00016178,2]
[399946257,1766921440850,-500.0,0.00016182,2]
[399946258,1766921440859,-212.0,0.00016191,2]
[399946259,1766921440869,-554.64,0.00016192,2]
[399946260,1766921440879,-554.64,0.00016192,2]
[399946261,1766921440888,-554.64,0.00016192,2]
[399946262,1766921440898,-300.0,0.00016192,2]
[399946263,1766921440908,-150.0,0.00016192,2]
[399946264,1766921440926,-554.64,0.00016192,2]
[399946265,1766921440937,-1221.21,0.00016192,2]
[399946266,1766921440947,-554.64,0.00016192,2]
[399946267,1766921440956,-150.0,0.00016192,2]
[399946268,1766921440966,-1221.21,0.00016192,2]
[399946269,1766921440976,-1109.28,0.00016192,2]
[399946270,1766921440988,-465.28,0.00016192,2]
[399946271,1766921441000,-150.0,0.00016192,2]
[399946272,1766921441009,-280.44326248,0.000162,2]
[399946273,1766921441020,-3874.97124849,0.000162,2]
[399946274,1766921441029,-5102.30663022,0.000162,2]
[399946275,1766921441039,-3335.50111894,0.0001623,2]
[399946276,1766921441050,-4285.08481481,0.00016245,2]
[399946277,1766921441062,-214.0,0.00016294,2]
[399946278,1766921441074,-214.0,0.00016301,2]
[399946279,1766921441085,-151.12490865,0.00016323,2]
[399946280,1766921441094,-3335.50111894,0.00016325,2]
[399946281,1766921441104,-4285.08481481,0.00016354,2]
[399946282,1766921441114,-545.2,0.00016401,2]
[399946283,1766921441123,-154.69967438,0.00016409,2]
[399946284,1766921441133,-3335.50111894,0.00016421,2]
[399946285,1766921441143,-353.94301346,0.00016438,2]
[399946286,1766921441152,-7069.93,0.00016438,2]
[399946287,1766921441162,-4285.08481481,0.00016463,2]
[399946288,1766921441171,-151.12490865,0.00016467,2]
[399946289,1766921441180,-151.42,0.00016506,2]
[399946290,1766921441190,-3335.50111894,0.00016517,2]
[399946291,1766921441199,-166.66,0.00016527,2]
[399946292,1766921441209,-4285.08481481,0.00016572,2]
[399946293,1766921441218,-151.12490865,0.00016611,2]
[399946294,1766921441228,-3335.50111894,0.00016613,2]
[399946295,1766921441237,-154.69967438,0.00016654,2]
[399946296,1766921441247,-433.98777486,0.0001666,2]
[399946297,1766921441256,-545.2,0.00016675,2]
[399946298,1766921441265,-4285.08481481,0.00016682,2]
[399946299,1766921441274,-277.91152416,0.00016693,2]
[399946300,1766921441283,-3335.50111894,0.00016708,2]
[399946301,1766921441293,-243.0,0.0001671,2]
[399946302,1766921441302,-151.12490865,0.00016756,2]
[399946303,1766921441311,-186.605,0.00016756,2]
[399946304,1766921441321,-1414.618,0.00016756,2]
[399946305,1766921441331,-172.0,0.00016761,2]
[399946306,1766921441340,-172.0,0.00016779,2]
[399946307,1766921441350,-4285.08481481,0.00016791,2]
[399946308,1766921441359,-3335.50111894,0.00016804,2]
[399946309,1766921441368,-1000.0,0.00016832,2]
[399946310,1766921441378,-200.0,0.00016864,2]
[399946311,1766921441387,-10000.0,0.000169,2]
[399946312,1766921441396,-7867.98309177,0.000169,3]
[399946313,1766921441406,-3335.50111894,0.000169,2]
[399946314,1766921441415,-151.12490865,0.000169,2]
[399946315,1766921441424,-3434.13748852,0.000169,2]
[399946316,1766921441434,-154.69967438,0.000169,2]
[399946317,1766921441443,-1403.51807199,0.000169,2]
[399946318,1766921441453,-66510.15607146,0.000169,2]
[399946319,1766921441462,-4285.08481481,0.000169,2]
[399946320,1766921441471,-4298.0,0.000169,2]
[399946321,1766921441480,-545.2,0.00016949,2]
[399946322,1766921441490,-1000.0,0.0001697,2]
[399946323,1766921441499,-500.0,0.00016973,2]
[399946324,1766921441508,-500.0,0.00016973,2]
[399946325,1766921441517,-203.15298137,0.00016973,2]
[399946326,1766921441527,-500.0,0.00016973,2]
[399946327,1766921441535,-500.85707724,0.00016973,2]
[399946328,1766921441544,-516.27997317,0.00016973,2]
[399946329,1766921441553,-500.0,0.00016973,2]
[399946330,1766921441563,-500.0,0.00016973,2]
[399946331,1766921441571,-500.69794678,0.00016973,2]
[399946332,1766921441580,-578.09055034,0.00016973,2]
[399946333,1766921441589,-500.0,0.00016973,2]
[399946334,1766921441598,-340.61062855,0.00016973,2]
[399946335,1766921441609,-500.0,0.00016973,2]